Cogmind - Beta 16.1 @@@ ROGUE MODE // 2026.03.20 @ 17:19:29 // Winter2019/RPGLIKE Player: john Result: Destroyed 0b10! Performance ------------- Evolutions (9) 4500 Regions Visited (23) 4600 Robots Destroyed (357) 1785 Value Destroyed (21177) 21177 Prototype IDs (23) 460 Alien Tech Used (3) 600 Bonus (21060) 21060 TOTAL SCORE: 54182 Bonus ------- High Alert Combat Kills 2591 Follower Combat Kills 783 Entered Garrisons 400 Used RIF Installer 1000 Registered with UFD 300 Met Optimus in HQ 500 MAIN.C Attacked Warlord 500 A7 Reached Mainframe 300 Met R17 at Cetus 500 Used Core Reset Matrix 3000 Met R17 at Research 2000 Met Sigix 2000 Escaped with Sigix 5000 Win 3000 Friendly Fire -814 Cogmind --------- Core Integrity 1381/2650 Matter 550/550 Energy 384/390 System Corruption 9% Temperature Cool (4) Movement Walking (105) Location Tau Ceti IV Orbit Parts ------- > --- POWER (1) -------- Light Quantum Reactor > --- PROPULSION (2) --- Centrium Leg Centrium Leg > --- UTILITY (20) ----- Structural Scanner Advanced Sensor Array Advanced Signal Interpreter Long-range Terrain Scanner Improved Targeting Computer Advanced Target Analyzer Core Analyzer Core Analyzer Core Analyzer Advanced Recoil Stabilizer Improved Kinecellerator Advanced Weapon Cycler Advanced Weapon Cycler Advanced ECM Suite Improved Phase Shifter Graphene Brace Force Field Hacking Suite Long-range Tractor Beam > --- WEAPON (3) ------- Enhanced Hardcell Cannon Enhanced Hardcell Cannon Enhanced Hardcell Cannon > --- INVENTORY (8) ---- Hypervelocity Mass Driver Hypervelocity Mass Driver Heavy Linear Accelerator Molecular Deconstructor Sigix Containment Pod Peak State ------------ > --- POWER ------------ Light Quantum Reactor > --- PROPULSION ------- Centrium Leg Centrium Leg > --- UTILITY ---------- Structural Scanner Advanced Sensor Array Advanced Signal Interpreter Long-range Terrain Scanner Improved Targeting Computer Advanced Target Analyzer Core Analyzer Core Analyzer Core Analyzer Advanced Recoil Stabilizer Improved Kinecellerator Advanced Weapon Cycler Advanced Weapon Cycler Advanced ECM Suite Improved Phase Shifter Centrium Medium Armor Plating Graphene Brace Force Field Hacking Suite Long-range Tractor Beam > --- WEAPON ----------- Enhanced Hardcell Cannon Enhanced Hardcell Cannon Enhanced Hardcell Cannon > --- INVENTORY -------- Hypervelocity Mass Driver Hypervelocity Mass Driver Heavy Linear Accelerator Molecular Deconstructor Sigix Containment Pod [Rating: 169] Favorites ----------- Power Light Particle Reactor Engine Light Ion Engine Power Core Light Nuclear Core Reactor Light Particle Reactor Propulsion Biometal Leg Leg Biometal Leg Utility Improved Targeting Computer Device Structural Scanner Processor Improved Targeting Computer Hackware Hacking Suite Protection Centrium Medium Armor Plating Weapon Advanced Remote Datajack Energy Gun Subdweller Laser Energy Cannon Cooled Plasma Cannon Ballistic Gun Minigun Ballistic Cannon Hypervelocity Mass Driver Launcher Tiamat Missile Launcher Special Weapon Advanced Remote Datajack Build | -11 -10 -10 -9 -6 -6 -6 -6 -6 -6 -6 -6 -5 -5 -5 -5 -4 -4 -4 -3 -3 -2 -1 -1 ------- Run | Yrd Mat Sub Scr Fac Was Fac Gar Ext Cet Arc Hub Fac Upp Upp War Pro Fac Gar Res Qua Res Acc Com Slots Evolved 22 | 22 . . . . . . . . . . . . . . . . . . . . . . . Power . | . . . . . . . . . . . . . . . . . . . . . . . . Propulsion 1 | 1 . . . . . . . . . . . . . . . . . . . . . . . Utility 19 | 19 . . . . . . . . . . . . . . . . . . . . . . . Weapon 2 | 2 . . . . . . . . . . . . . . . . . . . . . . . Parts Attached 137 | 5 14 3 12 9 3 16 11 7 4 . 5 4 3 . 2 . 1 12 10 3 5 . 8 Power 12 | 1 1 . . 2 1 1 1 . . . . . . . . . . 1 2 . . . 2 Engine 2 | 1 . . . 1 . . . . . . . . . . . . . . . . . . . Core 5 | . 1 . . 1 1 1 . . . . . . . . . . . 1 . . . . . Reactor 5 | . . . . . . . 1 . . . . . . . . . . . 2 . . . 2 Propulsion 14 | 2 . . 2 2 . 2 2 . . . . . . . . . . 2 1 . . . 1 Treads . | . . . . . . . . . . . . . . . . . . . . . . . . Leg 14 | 2 . . 2 2 . 2 2 . . . . . . . . . . 2 1 . . . 1 Wheel . | . . . . . . . . . . . . . . . . . . . . . . . . Hover . | . . . . . . . . . . . . . . . . . . . . . . . . Flight . | . . . . . . . . . . . . . . . . . . . . . . . . Utility 72 | 1 9 . 10 4 1 8 5 5 3 . 2 1 2 . . . 1 4 5 3 5 . 3 Device 43 | 1 6 . 4 2 . 6 3 1 . . 2 1 1 . . . 1 2 5 2 4 . 2 Storage . | . . . . . . . . . . . . . . . . . . . . . . . . Processor 15 | . 3 . 6 . . . . 1 . . . . 1 . . . . 1 . 1 1 . 1 Hackware 5 | . . . . 1 . 2 1 . . . . . . . . . . 1 . . . . . Protection 9 | . . . . 1 1 . 1 3 3 . . . . . . . . . . . . . . Artifact . | . . . . . . . . . . . . . . . . . . . . . . . . Weapon 39 | 1 4 3 . 1 1 5 3 2 1 . 3 3 1 . 2 . . 5 2 . . . 2 Energy Gun 15 | 1 4 3 . . . 2 3 1 1 . . . . . . . . . . . . . . Energy Cannon 3 | . . . . . . 1 . . . . . . . . 2 . . . . . . . . Ballistic Gun 1 | . . . . . . 1 . . . . . . . . . . . . . . . . . Ballistic Cannon 12 | . . . . . . . . . . . 1 2 . . . . . 5 2 . . . 2 Launcher 3 | . . . . . . . . . . . 2 1 . . . . . . . . . . . Special Weapon 5 | . . . . 1 1 1 . 1 . . . . 1 . . . . . . . . . . Impact Weapon . | . . . . . . . . . . . . . . . . . . . . . . . . Slashing Weapon . | . . . . . . . . . . . . . . . . . . . . . . . . Piercing Weapon . | . . . . . . . . . . . . . . . . . . . . . . . . Special Melee Weapon . | . . . . . . . . . . . . . . . . . . . . . . . . Unidentified Prototypes 16 | . . . . . 1 2 . . 1 . . 1 1 . 2 . . 1 5 2 . . . Corrupted Parts 1 | . . . . . . . . . . . . . . . . . . . 1 . . . . System Corruption 10 | . . . . . . . . . . . . . . . . . . . 10 . . . . Parts Lost 12 | . . . . 1 3 . 2 2 . . . . 1 . . . . 1 . . 1 . 1 Power . | . . . . . . . . . . . . . . . . . . . . . . . . Propulsion . | . . . . . . . . . . . . . . . . . . . . . . . . Utility 11 | . . . . 1 2 . 2 2 . . . . 1 . . . . 1 . . 1 . 1 Weapon 1 | . . . . . 1 . . . . . . . . . . . . . . . . . . Highest Loss Streak 3 | . . . . 1 3 . 1 2 . . . . 1 . . . . 1 . . 1 . 1 To Critical Strikes . | . . . . . . . . . . . . . . . . . . . . . . . . Average Backups 6 | . . 5 7 7 7 5 7 8 8 8 7 7 7 7 6 7 6 6 5 4 3 3 3 Power . | . . 1 2 2 2 . . . . . . . . . . . . . . . . . . Propulsion . | . . 1 1 1 1 1 2 2 2 2 2 2 2 2 . . . . . . . . . Utility 2 | . . . 2 3 3 3 3 3 3 3 2 2 2 2 2 2 2 1 1 . . . . Weapon 2 | . . 2 1 . . . 1 2 3 3 3 3 3 3 3 5 4 5 4 3 3 3 2 Tool/Special . | . . . . . . . . . . . . . . . . . . . . . . . . Unused Backups 13 | . . 1 1 3 . 1 . . . . 2 1 . . . . . 2 1 1 . . . Power 2 | . . . . 2 . . . . . . . . . . . . . . . . . . . Propulsion 1 | . . . . . . 1 . . . . . . . . . . . . . . . . . Utility 4 | . . 1 . 1 . . . . . . . . . . . . . 1 . 1 . . . Weapon 6 | . . . 1 . . . . . . . 2 1 . . . . . 1 1 . . . . Tool/Special . | . . . . . . . . . . . . . . . . . . . . . . . . Average Slot Usage (%) 91 | . 32 61 81 95 77 84 89 93 100 100 100 99 94 99 99 100 100 98 99 98 96 99 98 Reactor 1 | . . . . . . . . 2 3 3 3 3 3 3 3 3 3 3 3 3 3 3 2 Leg 6 | . 7 7 7 7 7 7 7 7 7 7 7 7 7 7 7 7 7 7 6 7 7 7 6 Device 36 | . 9 26 31 37 28 28 27 30 34 34 34 38 41 42 42 42 42 42 42 41 43 46 45 Processor 19 | . 2 11 25 33 23 23 22 19 23 23 22 19 15 19 19 19 19 15 15 15 16 19 21 Hackware 7 | . . . . . 3 6 11 14 11 11 11 11 8 7 7 7 7 8 11 9 7 7 4 Protection 4 | . . . . . 3 3 2 4 7 7 7 7 7 7 7 7 7 7 7 7 5 3 2 Energy Gun 4 | . 8 11 11 10 4 4 10 8 7 7 4 . . . . . . . . . . . . Ballistic Cannon 2 | . . . . . . . . . . . . 6 . 2 2 3 3 5 6 6 7 6 10 Special Weapon 2 | . . . . . 1 . . 1 3 3 3 3 6 3 3 3 3 3 3 3 3 3 . Peak Build Rating 169 | 5 23 27 58 74 88 114 122 124 133 133 137 139 146 145 143 141 143 157 157 157 158 161 169 Average Rating 116 | 3 10 25 45 64 76 104 98 115 130 132 131 136 142 140 139 140 141 151 152 153 153 159 162 On Entrance 109 | . 5 23 27 58 74 67 113 110 119 133 133 131 139 145 140 141 141 143 152 153 155 158 161 Avg Prop Armor Cover (%) 3 | . . . 7 . . . . . . . . . . . 3 3 3 3 . . . . . Naked Turns . | . . . . . . . . . . . . . . . . . . . . . . . . Heaviest Build 88 | 6 19 25 29 43 84 87 83 60 60 60 64 72 73 73 78 73 73 82 84 86 86 81 88 Greatest Support 85 | 20 20 20 48 36 36 41 71 71 71 71 71 71 71 71 71 43 43 80 85 85 85 85 85 Greatest Overweight (x) 2 | . . 1 1 1 2 2 2 . . . . 1 1 1 1 1 1 1 1 1 1 . 1 Average Overweight (x) . | . . . . . 1 1 . . . . . . . . . 1 1 . . . . . . Largest Inventory Capacity 8 | 8 8 8 8 8 8 8 8 8 8 8 8 8 8 8 8 8 8 8 8 8 8 8 8 Average Capacity 8 | 8 8 8 8 8 8 8 8 8 8 8 8 8 8 8 8 8 8 8 8 8 8 8 8 Most Carried 8 | . 6 8 8 8 8 8 8 8 8 8 8 8 8 8 8 8 8 8 8 8 7 7 8 Average Carried 7 | . 2 7 7 7 7 5 7 7 8 8 7 7 7 7 7 8 7 7 6 6 6 6 6 Final Capacity 8 | 8 8 8 8 8 8 8 8 8 8 8 8 8 8 8 8 8 8 8 8 8 8 8 8 Final Carried 8 | . 6 8 8 8 7 8 8 8 8 8 8 7 8 8 8 8 8 8 6 7 6 6 8 Scrap Suit Usage (%) 10 | . . . 47 100 12 . . . . . . . . . . . . . . . . . . Parts Cannibalized 2 | . . . . 2 . . . . . . . . . . . . . . . . . . . Class Distribution -------------------- 48% | Wizard-Gunner 27% | Hacker-Gunner 17% | Scavenger-Skirmisher Dominant Class ---------------- Scavenger-Gunner | -10/Materials Scavenger-Skirmisher | -10/Subcaves Scavenger-Skirmisher | -9/Scraptown Scavenger-Skirmisher | -6/Factory Hacker-Mutant | -6/Waste Hacker-Gunner | -6/Factory Hacker-Gunner | -6/Garrison Wizard-Gunner | -6/Extension Wizard-Gunner | -6/Cetus Wizard-Gunner | -6/Archives Wizard-Gunner | -6/Hub_04(d) Wizard-Gunner | -5/Factory Hacker-Gunner | -5/Upper Caves Hacker-Gunner | -5/Upper Caves Hacker-Gunner | -5/Warlord Wizard-Gunner | -4/Proximity Caves Wizard-Gunner | -4/Factory Wizard-Gunner | -4/Garrison Wizard-Gunner | -3/Research Wizard-Gunner | -3/Quarantine Wizard-Gunner | -2/Research Wizard-Gunner | -1/Access Wizard-Gunner | -1/Command Resources | -11 -10 -10 -9 -6 -6 -6 -6 -6 -6 -6 -6 -5 -5 -5 -5 -4 -4 -4 -3 -3 -2 -1 -1 ----------- Run | Yrd Mat Sub Scr Fac Was Fac Gar Ext Cet Arc Hub Fac Upp Upp War Pro Fac Gar Res Qua Res Acc Com Matter Collected 11563 | 59 300 30 210 115 . 297 378 221 101 30 64 254 237 95 . 821 64 1798 1768 1217 845 458 2201 Remotely 8695 | . 30 30 210 112 . . . . . . . . . . . . 26 1798 1768 1217 845 458 2201 Salvage Created 15623 | 20 367 206 . 743 . 543 1353 1138 231 126 328 153 130 . . 289 . 931 2341 1745 1710 1083 2186 Parts 765 | 3 25 8 . 36 4 26 69 52 14 9 15 11 13 6 . 16 6 53 92 87 76 47 97 Haulers Intercepted 3 | . . . . . . . . . . . . . . . . . . . 1 1 1 . . Recyclers Shooed 4 | . . . . 1 . 1 . . . . . 1 . . . . . . . . . . 1 Parts Field Recycled . | . . . . . . . . . . . . . . . . . . . . . . . . Retrieved Matter . | . . . . . . . . . . . . . . . . . . . . . . . . Parts Self-Destructed 39 | . . . . . . . . . . . . . 16 7 . 16 . . . . . . . Prevented 1 | . . . . . . . . . . . . . . 1 . . . . . . . . . Parts Restored . | . . . . . . . . . . . . . . . . . . . . . . . . Kills | -11 -10 -10 -9 -6 -6 -6 -6 -6 -6 -6 -6 -5 -5 -5 -5 -4 -4 -4 -3 -3 -2 -1 -1 ------- Run | Yrd Mat Sub Scr Fac Was Fac Gar Ext Cet Arc Hub Fac Upp Upp War Pro Fac Gar Res Qua Res Acc Com Combat Hostiles Destroyed 298 | . 15 3 . 13 1 7 32 19 5 4 3 5 6 4 . 15 2 36 33 24 19 15 37 Guns 87 | . 15 3 . 13 1 2 27 17 4 3 2 . . . . . . . . . . . . Cannons 184 | . . . . . . 5 . . . . . 5 . . . 15 2 30 33 24 19 15 36 AOE 11 | . . . . . . . . . . . 1 . . 4 . . . 6 . . . . . Classes Destroyed 28 | 1 5 . . 2 1 2 2 4 . . 2 . 1 . . . . 2 3 2 . . 1 Worker 10 | . 1 . . 2 . . . . . . . . . . . . . . . . 4 . 3 Builder 4 | . . . . . . . . 2 . . . . . . . . . . 1 1 . . . Tunneler 2 | 1 . . . . . . . . . . 1 . . . . . . . . . . . . Hauler 3 | . . . . . . . . . . . . . . . . . . . 1 1 1 . . Recycler 12 | . . . . 1 . 2 . . . . 1 . . . . . . . 1 . 2 . 5 Operator 3 | . . . . . . . . . . . 1 . . . . . . . . . 1 1 . Watcher 22 | . 3 . . 1 . 1 . 3 1 . . 2 . . . . . . 1 3 3 1 3 Swarmer 58 | . 3 . . 2 . . 8 . . . . 5 4 4 . 13 . 3 . 5 . 5 6 Cutter 3 | . . . . . . . . . . . . . . . . . . 3 . . . . . Grunt 88 | . 9 . . 10 . . 17 9 . . . . . . . . . 14 12 7 4 . 6 Brawler 4 | . . . . . . . . 2 . . . . . . . . . . . . 1 . 1 Duelist 5 | . . . . . . . . 2 . . . . . . . . . 1 . 1 . . 1 Protector 1 | . . . . . . . . . . . . . . . . . . . . 1 . . . Researcher 2 | . . . . . . . . . . . . . . . . . . . . 2 . . . Sentry 24 | . . . . 1 . 1 3 2 . 4 . . 1 . . . . 6 3 . . 3 . Demolisher 3 | . . . . . . . . 1 . . . . . . . . . . 2 . . . . Specialist 9 | . . . . . . 4 . . . . 2 . 1 . . . . . . . . 2 . Hunter 24 | . . . . . . . 2 . . . . . . . . . . 2 4 2 6 4 4 Programmer 33 | . . . . . . 2 . 1 . . . . . . . 2 2 4 2 5 7 . 8 Heavy 4 | . . . . . . . . . . . 1 . . . . . . . . . 1 1 1 Behemoth 7 | . . . . . . . 2 2 . . . . . . . . . 1 . . . . 2 Compactor 1 | . . . . . 1 . . . . . . . . . . . . . . . . . . Cetus Guard 5 | . . . . . . . . . 5 . . . . . . . . . . . . . . Lightning 3 | . . . . . . . . . . . . . . . . . . . . 3 . . . Striker 11 | . . . . . . . . . . . . . . . . . . 2 7 . . . 2 Executioner 7 | . . . . . . . . . . . . . . . . . . . 3 . . . 4 Alpha 7 2 | . . . . . . . . . . . . . . . . . . . . . . . 2 Subdweller 6 | . 3 3 . . . . . . . . . . . . . . . . . . . . . Tinkerer 1 | . . . . . . . . . . . . . 1 . . . . . . . . . . Revision 1 | . . . . . . . . . . . . . . . . . . . 1 . . . . Best Kill Streak 18 | 1 4 2 . 7 1 2 6 8 3 1 4 5 4 4 . 5 2 9 6 8 18 5 8 Combat Bots Only 9 | . 4 2 . 7 1 2 6 8 3 1 3 5 4 4 . 5 2 9 6 8 5 5 7 Max Kills in Single Turn 2 | 1 2 1 . 2 1 1 2 2 1 1 2 1 1 2 . 1 1 2 2 2 2 1 2 Gunslinging 1 | . 1 . . . . . 1 . . . . . . . . . . . . . . . . Exploded 2 | . . . . . . . . . . . 1 . . 2 . . . 2 . . . . . Melee . | . . . . . . . . . . . . . . . . . . . . . . . . Uniques/NPCs Destroyed . | . . . . . . . . . . . . . . . . . . . . . . . . Combat | -11 -10 -10 -9 -6 -6 -6 -6 -6 -6 -6 -6 -5 -5 -5 -5 -4 -4 -4 -3 -3 -2 -1 -1 -------- Run | Yrd Mat Sub Scr Fac Was Fac Gar Ext Cet Arc Hub Fac Upp Upp War Pro Fac Gar Res Qua Res Acc Com Hostile Shots Fired 1779 | . 52 13 . 115 10 35 336 150 54 28 30 10 56 5 . 101 2 167 135 93 53 37 297 Missed 625 | . 16 3 . 32 2 11 98 47 18 7 11 2 21 1 . 20 . 78 65 38 22 12 121 Hits 1154 | . 36 10 . 83 8 24 238 103 36 21 19 8 35 4 . 81 2 89 70 55 31 25 176 Melee 16 | . . . . . 8 . . 5 . . . . . . . . . . . 2 . . 1 Projectile 1138 | . 36 10 . 83 . 24 238 98 36 21 19 8 35 4 . 81 2 89 70 53 31 25 175 AOE 3 | . . . . . . . . 2 . . . . . . . . . 1 . . . . . Critical Strikes 50 | . . 1 . 1 6 1 8 2 7 2 . . 1 . . . 1 3 2 5 2 . 8 Actively Blocked 22 | . . . . . . . . . . . . . 1 . . . 1 3 2 5 2 . 8 Part Disruptions 4 | . . . . . . . . . . . . . . . 1 . . . . . 1 2 . Damage Taken 13312 | . 471 191 . 1224 337 122 2410 961 391 217 254 47 594 23 130 627 19 1146 840 581 400 339 1988 Core 9055 | . 379 162 . 973 169 56 1472 610 240 126 180 27 452 10 60 390 11 781 535 392 274 245 1511 Absorbed by Shields 8029 | . . . . 331 . 87 1196 649 399 207 140 51 241 25 38 512 20 857 858 610 411 278 1119 Redirected to Core 7492 | . 295 106 . 830 169 56 1096 508 210 106 146 27 314 10 60 339 11 678 461 313 229 220 1308 Ignored by Resistances 3216 | . 13 16 . 94 22 166 250 150 152 75 73 21 97 11 . 261 . 419 366 179 116 87 648 Regen/Repaired (Parts) 17 | . . . . 17 . . . . . . . . . . . . . . . . . . . Core Remaining (%) 78 | 100 . . 100 . . . . . . . 91 . . . . 46 . 56 . 91 88 . 52 Volleys Fired 918 | 3 53 9 . 34 11 31 93 73 35 19 15 15 35 6 10 43 8 118 86 62 49 31 79 Largest 3 | 1 3 3 . 3 3 3 3 3 2 2 2 2 1 1 2 1 1 2 2 2 2 2 3 Hottest 225 | 50 155 170 . 180 180 180 225 203 146 145 145 91 47 47 93 47 47 116 114 114 112 116 174 Shots Fired 1855 | 3 117 27 . 99 25 55 282 158 53 28 21 25 35 9 11 45 8 180 168 125 95 58 228 Gun 828 | 3 117 27 . 98 25 24 281 155 52 28 18 . . . . . . . . . . . . Cannon 960 | . . . . . . 31 1 . . . . 25 1 4 10 45 8 166 165 125 95 56 228 Launcher 23 | . . . . . . . . . . . 3 . . 5 1 . . 14 . . . . . Special 44 | . . . . 1 . . . 3 1 . . . 34 . . . . . 3 . . 2 . Kinetic 928 | . . . . . . . . . . . . 25 1 4 10 45 8 166 165 125 95 56 228 Thermal 860 | 3 117 27 . 98 25 55 282 155 52 28 18 . . . . . . . . . . . . Explosive 23 | . . . . . . . . . . . 3 . . 5 1 . . 14 . . . . . Electromagnetic . | . . . . . . . . . . . . . . . . . . . . . . . . Robot Hit Streak 70 | 1 23 9 . 58 41 43 26 54 22 13 16 17 10 . . 15 6 21 27 34 22 18 70 Robot Miss Streak 5 | 1 3 1 . 1 . 4 5 4 1 1 1 2 1 . . 1 . 2 2 2 1 1 2 Penetration Max 2 | . . . . . . . . . . . . 1 . . . . . 1 1 2 2 . 1 Secondary Targets 19 | . 1 1 . 4 . . 5 6 2 . . . . . . . . . . . . . . Max Gunslinging Chain 1 | . 1 1 . 1 . . 1 1 1 . . . . . . . . . . . . . . Shots Hit Robots 1276 | 2 87 20 . 83 21 36 175 137 42 24 16 11 12 . . 29 2 103 112 99 77 34 154 Core Hits 636 | 1 36 6 . 36 6 23 100 53 18 12 11 8 . 6 . 18 2 63 54 48 43 20 72 Critical Kills 109 | . . . . 1 . . . . . . . . . . . . . . 36 29 25 8 10 Critical Parts Destroyed 111 | . . . . . . . . . . . . . . . . . . . 34 31 31 6 9 Critical Strikes 283 | . 5 . . 1 . . 2 10 5 . . . . . . . . 4 78 65 57 17 39 Burn 22 | . 5 . . . . . 2 10 5 . . . . . . . . . . . . . . Destroy 235 | . . . . 1 . . . . . . . . . . . . . . 78 65 57 14 20 Blast 26 | . . . . . . . . . . . . . . . . . . 4 . . . 3 19 Melee Attacks . | . . . . . . . . . . . . . . . . . . . . . . . . Impact . | . . . . . . . . . . . . . . . . . . . . . . . . Slashing . | . . . . . . . . . . . . . . . . . . . . . . . . Piercing . | . . . . . . . . . . . . . . . . . . . . . . . . Sneak Attacks . | . . . . . . . . . . . . . . . . . . . . . . . . Combat Hostiles . | . . . . . . . . . . . . . . . . . . . . . . . . Follow-up Attacks . | . . . . . . . . . . . . . . . . . . . . . . . . Damage Inflicted 41279 | 38 1054 309 . 1747 494 1207 4290 3369 1016 637 685 490 . 278 . 1278 119 6313 2782 2395 2305 1243 9230 Guns 13783 | 38 1031 309 . 1745 494 490 4290 3322 1016 637 411 . . . . . . . . . . . . Cannons 25208 | . . . . . . 695 . . . . . 457 . . . 1240 115 4827 2752 2395 2292 1243 9192 Explosions 2038 | . . . . . . . . . . . 274 . . 278 . . . 1486 . . . . . Melee . | . . . . . . . . . . . . . . . . . . . . . . . . Ramming 250 | . 23 . . 2 . 22 . 47 . . . 33 . . . 38 4 . 30 . 13 . 38 Kinetic 24513 | . . . . . . . . . . . . 457 . . . 1240 115 4827 2752 2395 2292 1243 9192 Thermal 14478 | 38 1031 309 . 1745 494 1185 4290 3322 1016 637 411 . . . . . . . . . . . . Explosive 2038 | . . . . . . . . . . . 274 . . 278 . . . 1486 . . . . . Electromagnetic . | . . . . . . . . . . . . . . . . . . . . . . . . Impact . | . . . . . . . . . . . . . . . . . . . . . . . . Slashing . | . . . . . . . . . . . . . . . . . . . . . . . . Piercing . | . . . . . . . . . . . . . . . . . . . . . . . . Highest Corruption 18 | . . . . . 8 8 4 4 4 4 4 . 5 5 5 3 . . 13 18 4 5 9 Average Corruption 5 | . . . . . 8 3 3 4 4 4 2 . 5 5 1 2 . . 12 13 3 3 5 Corruption Purged 9 | . . . . . . 5 . . . . 4 . . . . . . . . . . . . Corruption Blocked . | . . . . . . . . . . . . . . . . . . . . . . . . Effects 373 | . . . . . 11 26 57 23 15 5 4 . 35 23 6 21 . . 71 30 7 9 30 Message Errors 80 | . . . . . 2 5 11 4 2 . 1 . 7 3 4 6 . . 18 7 . 3 7 Matter Fused 93 | . . . . . 3 7 12 9 4 3 . . 6 6 1 4 . . 15 10 4 3 6 Heat Flow Errors 46 | . . . . . 1 6 8 3 2 1 2 . 6 3 1 3 . . 6 1 . . 3 Energy Discharges 43 | . . . . . 2 3 5 3 . . . . 8 3 . 1 . . 13 3 . . 2 Parts Rejected 4 | . . . . . . . . . 1 1 . . . . . . . . 1 . . . 1 Parts Fused 3 | . . . . . . . 1 . 1 . . . 1 . . . . . . . . . . Data Loss (minor) 44 | . . . . . . 4 10 2 2 . 1 . 5 2 . 4 . . 4 5 2 . 3 Data Loss (major) 20 | . . . . . 1 1 3 . 2 . . . 1 2 . . . . 6 . . 1 3 Misfires 19 | . . . . . 2 . 5 1 . . . . . 3 . 2 . . 2 2 . . 2 Alerts 6 | . . . . . . . . 1 . . . . 1 1 . 1 . . 2 . . . . Misdirections 2 | . . . . . . . . . . . . . . . . . . . 1 1 . . . Weapon Failures 13 | . . . . . . . 2 . 1 . . . . . . . . . 3 1 1 2 3 Overload Shots . | . . . . . . . . . . . . . . . . . . . . . . . . Overflow Damage 828 | . . . . . . 5 . . . . . 31 . 67 . 76 . 141 13 2 11 8 474 Projectiles 732 | . . . . . . 5 . . . . . 31 . . . 76 . 129 13 2 11 8 457 Explosions 79 | . . . . . . . . . . . . . . 67 . . . 12 . . . . . Melee 17 | . . . . . . . . . . . . . . . . . . . . . . . 17 Knockbacks 133 | . . . . . . . . 1 . . . 2 . . . 8 . 19 17 22 9 4 51 Impact 2 | . . . . . . . . 1 . . . . . . . . . . 1 . . . . Kinetic 118 | . . . . . . . . . . . . 2 . . . 8 . 18 16 20 8 4 42 Secondary 13 | . . . . . . . . . . . . . . . . . . 1 . 2 1 . 9 Self-Inflicted Damage 252 | . . . . . . . . . . . 66 . . . . . . 186 . . . . . Shots 4 | . . . . . . . . . . . 2 . . . . . . 2 . . . . . Rammed . | . . . . . . . . . . . . . . . . . . . . . . . . Targets Rammed 35 | . 12 . . 1 . 2 . 3 . . . 4 . . . 7 1 . 1 . 1 . 3 Kicked 35 | . 12 . . 1 . 2 . 3 . . . 4 . . . 7 1 . 1 . 1 . 3 Crushed . | . . . . . . . . . . . . . . . . . . . . . . . . Highest Temperature 557 | 30 220 . . 20 210 258 557 195 139 85 74 . 235 230 402 212 . . 182 . . . 179 Average Temperature 105 | 16 67 . . 8 110 83 184 33 14 47 27 . 80 103 195 87 . . 82 . . . 27 Received Heat Transfer 1799 | . 195 60 . 491 . . 487 142 20 36 4 . 25 . . . . 151 99 39 4 8 38 Effects 25 | . . . . . . . 25 . . . . . . . . . . . . . . . . Shutdowns 8 | . . . . . . . 8 . . . . . . . . . . . . . . . . Energy Bleed 3 | . . . . . . . 3 . . . . . . . . . . . . . . . . Interference 5 | . . . . . . . 5 . . . . . . . . . . . . . . . . Matter Decay 4 | . . . . . . . 4 . . . . . . . . . . . . . . . . Short Circuit 2 | . . . . . . . 2 . . . . . . . . . . . . . . . . Damage (minor) 2 | . . . . . . . 2 . . . . . . . . . . . . . . . . Damage (core) 1 | . . . . . . . 1 . . . . . . . . . . . . . . . . Siege Activations . | . . . . . . . . . . . . . . . . . . . . . . . . Martial Activations . | . . . . . . . . . . . . . . . . . . . . . . . . Shielding Activations . | . . . . . . . . . . . . . . . . . . . . . . . . Robots Disrupted . | . . . . . . . . . . . . . . . . . . . . . . . . Combat Hostiles . | . . . . . . . . . . . . . . . . . . . . . . . . Robots Corrupted 1 | . . . . . . . . . . . . . . . . . . . . . . . 1 Combat Hostiles 1 | . . . . . . . . . . . . . . . . . . . . . . . 1 Parts Fried 10 | . . . . . . . . . 2 . . . . . . . . . 5 . . . 3 Impact Corruptions 2 | . . . . . . . . . . . . . . . . . . . . . . . 2 Robots Melted 9 | . . . . . . . 5 2 1 1 . . . . . . . . . . . . . Combat Hostiles 9 | . . . . . . . 5 2 1 1 . . . . . . . . . . . . . Parts Melted 76 | . 9 2 . 4 . 9 29 6 8 6 2 . . . . . . . . . . 1 . Heat Transferred 24546 | 111 3263 546 . 2075 575 1845 7214 5624 1887 888 518 . . . . . . . . . . . . Parts Sabotaged 7 | . . . . . . . . 4 . . . . . . . . . . . . . . 3 Parts Stolen . | . . . . . . . . . . . . . . . . . . . . . . . . Parts Stripped . | . . . . . . . . . . . . . . . . . . . . . . . . Power Chain Reactions . | . . . . . . . . . . . . . . . . . . . . . . . . Alert | -11 -10 -10 -9 -6 -6 -6 -6 -6 -6 -6 -6 -5 -5 -5 -5 -4 -4 -4 -3 -3 -2 -1 -1 ------- Run | Yrd Mat Sub Scr Fac Was Fac Gar Ext Cet Arc Hub Fac Upp Upp War Pro Fac Gar Res Qua Res Acc Com Maximum Alert Level 4 | . . . . 1 . . 4 3 1 . . . . . . . . 4 3 1 2 2 3 Low Security (%) 56 | 100 100 . . 99 100 100 18 . 68 100 100 100 . . . . 100 14 67 74 41 . . Level 1 9 | . . . . . . . 5 2 31 . . . . . . . . 2 8 25 25 88 26 Level 2 17 | . . . . . . . 27 92 . . . . . . . . . 7 23 . 33 11 52 Level 3 11 | . . . . . . . 26 4 . . . . . . . . . 55 . . . . 21 Level 4 5 | . . . . . . . 21 . . . . . . . . . . 20 . . . . . Level 5 . | . . . . . . . . . . . . . . . . . . . . . . . . High Security . | . . . . . . . . . . . . . . . . . . . . . . . . Max Security . | . . . . . . . . . . . . . . . . . . . . . . . . Peak Influence 1430 | 5 143 . . 201 . 61 1351 748 271 85 105 131 . . . . 54 1430 804 393 475 499 980 Initial 804 | . 3 . . . . . . 709 197 45 1 51 . . . . . 33 804 333 122 272 312 Average 312 | 2 63 . . 33 . 10 679 595 167 47 4 39 . . . . 1 799 175 136 281 357 529 Influence Increases 9599 | 5 357 . . 345 . 246 1371 836 187 80 137 165 130 90 . 340 62 1597 937 632 533 455 1094 Destroy 0b10 Robot/C 6160 | . 240 . . 260 . 140 720 540 160 80 60 100 120 80 . 300 40 720 680 500 380 300 740 Destroy 0b10 Robot/NC 310 | 5 20 . . 20 . 15 . 40 10 . 15 10 . . . . . . 25 30 55 10 55 Destroy Leader 980 | . 66 . . 62 . 52 50 86 . . 20 14 10 10 . 40 10 50 166 58 88 82 116 Allied During Kill 177 | . . . . . . . 24 94 16 . . . . . . . . 24 19 . . . . Successful Hack 86 | . . . . 1 . . . 26 . . 16 2 . . . . . . 9 10 4 9 9 Disable Machine 240 | . . . . . . 30 45 30 . . . 15 . . . . . 15 30 30 . . 45 Anti-Garrison Action 800 | . . . . . . . 400 . . . . . . . . . . 400 . . . . . Destroy Structure 801 | . 1 . . 2 . 9 117 20 1 . 26 24 . . . . 12 388 8 4 6 54 129 Lose Combat Pursuer 45 | . 30 . . . . . 15 . . . . . . . . . . . . . . . . Influence Decreases 8625 | . 321 41 . 345 . 246 20 1834 426 189 37 270 122 98 . 340 14 215 1775 1006 296 421 609 Entered New Map 2306 | . 2 21 . . . . . 642 156 69 4 54 . 2 . . . 15 626 259 96 183 177 Time Decay 3989 | . 319 20 . 161 . 246 . 422 270 120 33 174 122 96 . 340 14 . 419 383 190 238 422 Lost Part 80 | . . . . 10 . . 20 20 . . . . . . . . . 10 . . 10 . 10 Lost Ally 340 | . . . . . . . . 300 . . . . . . . . . 40 . . . . . Purge Threat 1910 | . . . . 174 . . . 450 . . . 42 . . . . . 150 730 364 . . . Squads Dispatched 51 | . 3 . . 9 . 5 . 7 . . 2 . . . . . 2 . 5 3 2 5 8 Investigation 7 | . 1 . . 2 . . . 1 . . . . . . . . . . 2 . . 1 . Extermination 14 | . . . . 3 . 2 . . . . . . . . . . 1 . . 2 1 2 3 Reinforcement 21 | . 2 . . 1 . 3 . 4 . . 2 . . . . . 1 . 3 1 1 1 2 Assault 6 | . . . . . . . . 2 . . . . . . . . . . . . . 1 3 Garrison 3 | . . . . 3 . . . . . . . . . . . . . . . . . . . Intercept . | . . . . . . . . . . . . . . . . . . . . . . . . Searches Triggered . | . . . . . . . . . . . . . . . . . . . . . . . . Construction Impeded 4 | . . . . . . . . 3 . . . . . . . . 1 . . . . . . Haulers Reinforced 3 | . . . . . . 1 . . . . . . . . . . . . 2 . . . . Active Scanning Responses . | . . . . . . . . . . . . . . . . . . . . . . . . Cargo Convoy Interrupts . | . . . . . . . . . . . . . . . . . . . . . . . . Stealth | -11 -10 -10 -9 -6 -6 -6 -6 -6 -6 -6 -6 -5 -5 -5 -5 -4 -4 -4 -3 -3 -2 -1 -1 --------- Run | Yrd Mat Sub Scr Fac Was Fac Gar Ext Cet Arc Hub Fac Upp Upp War Pro Fac Gar Res Qua Res Acc Com Distress Signals 17 | . 1 . . . . . . 1 2 . . . . . 2 . . . 4 . 3 . 4 Communications Jammed . | . . . . . . . . . . . . . . . . . . . . . . . . Distress Signals . | . . . . . . . . . . . . . . . . . . . . . . . . Times Spotted 424 | . 28 3 . 21 4 15 42 38 10 5 5 9 7 3 . 17 2 43 48 36 26 19 43 Peak Tracking Total 10 | . 4 2 . 7 3 2 7 10 5 1 3 4 4 4 . 4 1 9 5 6 4 4 8 Tactical Retreats 37 | . 1 . . 3 . 4 4 3 . . 1 1 1 . . 1 . 2 3 4 3 1 5 ECM-based Alert Blocks 55 | . . . . 7 . 4 7 4 . . 2 5 1 . . 2 . 2 3 7 3 3 5 Traps | -11 -10 -10 -9 -6 -6 -6 -6 -6 -6 -6 -6 -5 -5 -5 -5 -4 -4 -4 -3 -3 -2 -1 -1 ------- Run | Yrd Mat Sub Scr Fac Was Fac Gar Ext Cet Arc Hub Fac Upp Upp War Pro Fac Gar Res Qua Res Acc Com Traps Triggered 32 | . 1 . . 2 . 2 4 1 . . . . . . 2 . . 9 3 2 . 1 5 Indirectly . | . . . . . . . . . . . . . . . . . . . . . . . . Trap Hack Attempts . | . . . . . . . . . . . . . . . . . . . . . . . . Triggered . | . . . . . . . . . . . . . . . . . . . . . . . . Disarmed . | . . . . . . . . . . . . . . . . . . . . . . . . Reprogrammed 6 | . . . . . . . . . . . . 6 . . . . . . . . . . . Reused . | . . . . . . . . . . . . . . . . . . . . . . . . Traps Extracted . | . . . . . . . . . . . . . . . . . . . . . . . . Installed . | . . . . . . . . . . . . . . . . . . . . . . . . Triggered . | . . . . . . . . . . . . . . . . . . . . . . . . Machines | -11 -10 -10 -9 -6 -6 -6 -6 -6 -6 -6 -6 -5 -5 -5 -5 -4 -4 -4 -3 -3 -2 -1 -1 ---------- Run | Yrd Mat Sub Scr Fac Was Fac Gar Ext Cet Arc Hub Fac Upp Upp War Pro Fac Gar Res Qua Res Acc Com Machines Disabled 27 | . . . . . . 2 3 2 1 . . 1 1 . 1 . . 8 2 3 . . 3 Max in Single Turn 2 | . . . . . . 1 1 1 1 . . 1 1 . 1 . . 2 1 1 . . 1 Garrison Access 4 | . . . . . . . . . . . 1 . . . . . . . 1 1 . 1 . Garrison Relay 3 | . . . . . . . . . . . . . . . . . . 3 . . . . . Phase Generator 1 | . . . . . . . . . . . . . . . . . . 1 . . . . . Machines Repaired . | . . . . . . . . . . . . . . . . . . . . . . . . Machines Dismantled . | . . . . . . . . . . . . . . . . . . . . . . . . Machines Sabotaged . | . . . . . . . . . . . . . . . . . . . . . . . . Overloaded Fab Kills . | . . . . . . . . . . . . . . . . . . . . . . . . Hacking | -11 -10 -10 -9 -6 -6 -6 -6 -6 -6 -6 -6 -5 -5 -5 -5 -4 -4 -4 -3 -3 -2 -1 -1 --------- Run | Yrd Mat Sub Scr Fac Was Fac Gar Ext Cet Arc Hub Fac Upp Upp War Pro Fac Gar Res Qua Res Acc Com Machines Accessed 79 | . 1 . 5 6 . 5 1 10 4 1 4 4 . 1 7 . 1 2 10 11 1 3 2 Terminals 51 | . 1 . . 3 . 4 1 10 4 . 3 3 . . . . . 2 6 9 1 2 2 Fabricators 1 | . . . . . . . . . . . . . . . . . . . 1 . . . . Repair Stations 1 | . . . . 1 . . . . . . . . . . . . . . . . . . . Recycling Units 2 | . . . . . . . . . . . . 1 . . . . . . 1 . . . . Scanalyzers 3 | . . . . 1 . . . . . . . . . . . . . . 1 1 . . . Garrison Access 7 | . . . . 1 . 1 . . . . 1 . . . . . 1 . 1 1 . 1 . Total Hacks 197 | . 1 . 8 10 . 7 1 22 8 25 19 12 . 1 8 . 2 5 28 25 1 7 7 Successful 149 | . 1 . 8 6 . 7 1 12 7 25 16 9 . 1 8 . 2 3 17 15 1 5 5 Failed 48 | . . . . 4 . . . 10 1 . 3 3 . . . . . 2 11 10 . 2 2 Catastrophic 8 | . . . . 1 . . . 1 . . . . . . . . . 1 4 1 . . . Database Lockouts . | . . . . . . . . . . . . . . . . . . . . . . . . Manual 62 | . . . . 1 . 1 . 6 . 1 6 6 1 . . . . 3 20 9 1 3 4 Terminals 129 | . 1 . . 5 . 5 1 22 8 . 17 10 . . . . . 5 20 21 1 6 7 Fabricators 1 | . . . . . . . . . . . . . . . . . . . 1 . . . . Repair Stations 2 | . . . . 2 . . . . . . . . . . . . . . . . . . . Recycling Units 3 | . . . . . . . . . . . . 2 . . . . . . 1 . . . . Scanalyzers 9 | . . . . 1 . . . . . . . . . . . . . . 5 3 . . . Garrison Access 11 | . . . . 2 . 2 . . . . 2 . . . . . 2 . 1 1 . 1 . Terminal Hacks 125 | . 1 . 8 3 . 5 1 12 7 25 14 7 . 1 8 . . 3 9 11 1 4 5 Record 47 | . . . 7 . . . . . 6 25 . . . . 6 . . . . 3 . . . Robot Analysis 1 | . . . 1 . . . . . . . . . . . . . . . . . . . . Prototype ID Bank 2 | . . . . . . . . . . . 2 . . . . . . . . . . . . Open Door 12 | . . . . . . . . 5 1 . . . . 1 2 . . 1 . 1 . 1 . Open DSF 2 | . . . . . . 1 . . . . . . . . . . . . 1 . . . . Level Access Points 3 | . . . . . . . . . . . 1 . . . . . . . . . 1 . 1 Branch Access Points 5 | . . . . . . 1 . 1 . . 1 . . . . . . . . . . 1 1 Emergency Access Points 7 | . . . . . . 1 1 . . . 2 . . . . . . 1 1 . . . 1 Machine Index 1 | . . . . . . . . . . . 1 . . . . . . . . . . . . Scanalyzer Index 2 | . . . . . . . . 1 . . 1 . . . . . . . . . . . . Alert Level 4 | . . . . 1 . . . . . . 1 . . . . . . . . . . 1 1 Unreport Threat 17 | . . . . 2 . 1 . 3 . . . 2 . . . . . 1 5 3 . . . Locate Traps 2 | . . . . . . . . . . . . 1 . . . . . . . . . . 1 Reprogram Traps 1 | . . . . . . . . . . . . 1 . . . . . . . . . . . Dispatch Records 2 | . . . . . . . . . . . . . . . . . . . 1 1 . . . Patrol Status 1 | . . . . . . . . . . . 1 . . . . . . . . . . . . Investigation Status 1 | . . . . . . . . . . . 1 . . . . . . . . . . . . Assault Status 1 | . . . . . . . . 1 . . . . . . . . . . . . . . . Garrison Status 1 | . . . . . . . . . . . . 1 . . . . . . . . . . . Recall Investigation 1 | . . . . . . . . . . . 1 . . . . . . . . . . . . Recall Reinforcements 3 | . . . . . . . . . . . . . . . . . . . 1 2 . . . Recall Assault 1 | . . . . . . . . . . . . . . . . . . . . 1 . . . Hauler Manifests 2 | . 1 . . . . . . . . . . 1 . . . . . . . . . . . Registered Components 1 | . . . . . . . . . . . 1 . . . . . . . . . . . . Zone Layout 5 | . . . . . . 1 . 1 . . 1 1 . . . . . . . . . 1 . Fabricator Hacks 1 | . . . . . . . . . . . . . . . . . . . 1 . . . . Network Status 1 | . . . . . . . . . . . . . . . . . . . 1 . . . . Repair Station Hacks 2 | . . . . 2 . . . . . . . . . . . . . . . . . . . Scan Component 1 | . . . . 1 . . . . . . . . . . . . . . . . . . . Repair 1 | . . . . 1 . . . . . . . . . . . . . . . . . . . Recycling Unit Hacks 3 | . . . . . . . . . . . . 2 . . . . . . 1 . . . . Report Inventory 2 | . . . . . . . . . . . . 1 . . . . . . 1 . . . . Retrieve Matter 1 | . . . . . . . . . . . . 1 . . . . . . . . . . . Scanalyzer 9 | . . . . 1 . . . . . . . . . . . . . . 5 3 . . . Retrieve Study 9 | . . . . 1 . . . . . . . . . . . . . . 5 3 . . . Garrison Access Hacks 9 | . . . . . . 2 . . . . 2 . . . . . 2 . 1 1 . 1 . Unlock Access 2 | . . . . . . 1 . . . . . . . . . . 1 . . . . . . Seal Access 3 | . . . . . . . . . . . 1 . . . . . . . . 1 . 1 . Coupler Status 4 | . . . . . . 1 . . . . 1 . . . . . 1 . 1 . . . . Unauthorized Hacks . | . . . . . . . . . . . . . . . . . . . . . . . . Terminals . | . . . . . . . . . . . . . . . . . . . . . . . . Fabricators . | . . . . . . . . . . . . . . . . . . . . . . . . Repair Stations . | . . . . . . . . . . . . . . . . . . . . . . . . Recycling Units . | . . . . . . . . . . . . . . . . . . . . . . . . Scanalyzers . | . . . . . . . . . . . . . . . . . . . . . . . . Garrison Access . | . . . . . . . . . . . . . . . . . . . . . . . . Data Cores Recovered 3 | . . . . . . . . . . . 1 . . . . . . . 1 . . 1 . Used 1 | . . . . . . . . . . . . . . . . . . . . . . 1 . Hacking Detections 34 | . . . . 5 . 2 . 5 2 . 1 3 . . . . 1 1 7 4 . 1 2 Full Trace Events 4 | . . . . 1 . . . 1 . . . . . . . . . . 1 . . 1 . Feedback Events 1 | . . . . . . . . . . . . . . . . . . . . . . 1 . Corruption 1 | . . . . . . . . . . . . . . . . . . . . . . 1 . Feedback Blocked . | . . . . . . . . . . . . . . . . . . . . . . . . Robot Schematics Acquired 2 | . . . . . . . . . . . . . . . . . . . . 2 . . . Robots Built . | . . . . . . . . . . . . . . . . . . . . . . . . Authchips . | . . . . . . . . . . . . . . . . . . . . . . . . Time . | . . . . . . . . . . . . . . . . . . . . . . . . Total Robot Build Rating . | . . . . . . . . . . . . . . . . . . . . . . . . Part Schematics Acquired 2 | . . . . . . . . . . . . . . . . . . . . 2 . . . Parts Built . | . . . . . . . . . . . . . . . . . . . . . . . . Authchips . | . . . . . . . . . . . . . . . . . . . . . . . . Time . | . . . . . . . . . . . . . . . . . . . . . . . . Total Part Build Rating . | . . . . . . . . . . . . . . . . . . . . . . . . Part Studies Acquired 6 | . . . . 1 . . . . . . . . . . . . . . 2 3 . . . Parts Repaired 1 | . . . . 1 . . . . . . . . . . . . . . . . . . . Time 38 | . . . . 38 . . . . . . . . . . . . . . . . . . . Parts Recycled . | . . . . . . . . . . . . . . . . . . . . . . . . Recycled Matter . | . . . . . . . . . . . . . . . . . . . . . . . . Retrieved Matter . | . . . . . . . . . . . . . . . . . . . . . . . . Retrieved Components . | . . . . . . . . . . . . . . . . . . . . . . . . Parts Scanalyzed . | . . . . . . . . . . . . . . . . . . . . . . . . Part Schematics Acquired . | . . . . . . . . . . . . . . . . . . . . . . . . Parts Damaged . | . . . . . . . . . . . . . . . . . . . . . . . . Bothacking | -11 -10 -10 -9 -6 -6 -6 -6 -6 -6 -6 -6 -5 -5 -5 -5 -4 -4 -4 -3 -3 -2 -1 -1 ------------ Run | Yrd Mat Sub Scr Fac Was Fac Gar Ext Cet Arc Hub Fac Upp Upp War Pro Fac Gar Res Qua Res Acc Com Used RIF Installer 2 | . . . . . . . 1 . . . . . . . . . . 1 . . . . . Program Shield 1 | . . . . . . . . . . . . . . . . . . 1 . . . . . Robots Hacked 6 | . . . . 1 . . . 3 1 . . . 1 . . . . . . . . . . Non-combat . | . . . . . . . . . . . . . . . . . . . . . . . . Combat 6 | . . . . 1 . . . 3 1 . . . 1 . . . . . . . . . . Robot Hacks Applied 6 | . . . . 1 . . . 3 1 . . . 1 . . . . . . . . . . parse_system 6 | . . . . 1 . . . 3 1 . . . 1 . . . . . . . . . . Relay Couplers Released 6 | . . . . . . . . . . . . . . . . . . 5 1 . . . . Machine Destruction 6 | . . . . . . . . . . . . . . . . . . 5 1 . . . . Attached 2 | . . . . . . . 1 . . . . . . . . . . 1 . . . . . Fabnet Peak Effective % . | . . . . . . . . . . . . . . . . . . . . . . . . Robots Rewired 10 | . . . . . . . . 9 . . . . . . . . . 1 . . . . . Allies Hacked 1 | . . . . . . . . . . . . . . . . . . 1 . . . . . Hacks Repelled . | . . . . . . . . . . . . . . . . . . . . . . . . Allies | -11 -10 -10 -9 -6 -6 -6 -6 -6 -6 -6 -6 -5 -5 -5 -5 -4 -4 -4 -3 -3 -2 -1 -1 -------- Run | Yrd Mat Sub Scr Fac Was Fac Gar Ext Cet Arc Hub Fac Upp Upp War Pro Fac Gar Res Qua Res Acc Com Total Allies 21 | . . . . . . . 2 16 . . . . . . . . . 3 . . . . . Largest Group 7 | . . . . . . . 2 7 1 1 . . . . . . . 2 1 . . . . Highest-Rated Group 287 | . . . . . . . 157 287 159 159 . . . . . . . 119 119 . . . . Highest-Rated Ally 159 | . . . . . . . 95 159 159 159 . . . . . . . 119 119 . . . . Initial UFD Resources 35 | . . . . 23 23 23 23 23 23 23 23 25 25 25 25 29 29 29 31 31 33 35 35 Total Orders . | . . . . . . . . . . . . . . . . . . . . . . . . Ally Attacks 148 | . . . . . . . 16 92 25 . . . . . . . . 13 2 . . . . Total Damage 3243 | . . . . . . . 376 1714 701 . . . . . . . . 384 68 . . . . Kills 21 | . . . . . . . 4 11 4 . . . . . . . . . 2 . . . . Allies Corrupted . | . . . . . . . . . . . . . . . . . . . . . . . . Allies Melted . | . . . . . . . . . . . . . . . . . . . . . . . . Intel | -11 -10 -10 -9 -6 -6 -6 -6 -6 -6 -6 -6 -5 -5 -5 -5 -4 -4 -4 -3 -3 -2 -1 -1 ------- Run | Yrd Mat Sub Scr Fac Was Fac Gar Ext Cet Arc Hub Fac Upp Upp War Pro Fac Gar Res Qua Res Acc Com Active Infowar (turns) 25969 | 9 1002 232 2853 1266 265 1509 2298 1039 584 248 472 525 1979 866 1391 1552 855 1974 2165 971 380 509 1025 Optics 4780 | . 663 232 2853 1032 . . . . . . . . . . . . . . . . . . . Sensors 25189 | . 269 232 2853 1228 265 1509 2298 1039 584 248 472 525 1979 866 1391 1552 855 1974 2165 971 380 509 1025 Terrain 24963 | . 21 232 2853 1266 265 1509 2298 1037 584 248 472 525 1979 866 1391 1552 855 1974 2165 971 380 509 1011 Structural 25377 | . 419 232 2853 1266 265 1509 2298 1039 584 248 472 525 1979 866 1391 1552 855 1974 2165 971 380 509 1025 Seismic 5459 | 9 1002 232 2853 1266 97 . . . . . . . . . . . . . . . . . . T.N.C. 4424 | . 40 232 2853 1266 33 . . . . . . . . . . . . . . . . . . ECM 21657 | . . . . 1204 265 1509 2144 1039 584 248 472 525 1979 866 1391 1552 855 1974 2165 971 380 509 1025 Robot Analysis Total 1 | . . . 1 . . . . . . . . . . . . . . . . . . . . Derelict Logs Recovered 8 | . . . 4 . . . . . . . . . 2 1 . 1 . . . . . . . Drone Launches . | . . . . . . . . . . . . . . . . . . . . . . . . Drone Recoveries . | . . . . . . . . . . . . . . . . . . . . . . . . Exploration | -11 -10 -10 -9 -6 -6 -6 -6 -6 -6 -6 -6 -5 -5 -5 -5 -4 -4 -4 -3 -3 -2 -1 -1 ------------- Run | Yrd Mat Sub Scr Fac Was Fac Gar Ext Cet Arc Hub Fac Upp Upp War Pro Fac Gar Res Qua Res Acc Com Turns Passed 25995 | 35 1002 232 2853 1266 265 1509 2298 1039 584 248 472 525 1979 866 1391 1552 855 1974 2165 971 380 509 1025 Spaces Moved 13774 | 21 503 106 1818 563 115 475 1607 569 449 159 247 350 779 422 440 670 156 1081 1501 613 234 366 530 Core 4 | 4 . . . . . . . . . . . . . . . . . . . . . . . Treads . | . . . . . . . . . . . . . . . . . . . . . . . . Legs 13770 | 17 503 106 1818 563 115 475 1607 569 449 159 247 350 779 422 440 670 156 1081 1501 613 234 366 530 Wheels . | . . . . . . . . . . . . . . . . . . . . . . . . Hover . | . . . . . . . . . . . . . . . . . . . . . . . . Flight . | . . . . . . . . . . . . . . . . . . . . . . . . Fastest Speed 50 | 50 120 120 95 105 105 175 100 110 110 110 110 110 110 110 110 180 180 110 120 105 105 105 105 Average Speed 137 | 106 120 166 151 148 195 236 118 110 110 110 110 114 123 173 150 180 180 149 120 118 106 105 140 Slowest Speed 265 | 120 120 190 190 190 245 265 265 110 110 110 110 180 180 180 180 180 180 190 190 190 175 105 175 Overloaded Moves . | . . . . . . . . . . . . . . . . . . . . . . . . Propulsion Burnouts . | . . . . . . . . . . . . . . . . . . . . . . . . Robots Hopped . | . . . . . . . . . . . . . . . . . . . . . . . . Potential Cave-ins 30 | . . . . . . . . . . . . . 16 . . 2 2 6 . 1 . . 3 Cave-ins Triggered 3 | . . . . . . . . . . . . . 1 . . 1 . 1 . . . . . Teleports 1 | . . . . . . . . . . . . . . . . . . . . . 1 . . Exploration Rate (%) 51 | 3 85 14 85 18 89 14 96 70 94 87 25 9 92 69 40 88 3 98 47 66 11 13 30 Regions Visited 23 Branch Regions 12 Pre-discovered Areas . | . . . . . . . . . . . . . . . . . . . . . . . . Known Exits Taken 16 | . . . 1 . . 1 . 1 1 1 1 1 1 1 1 1 1 . 1 1 1 1 . Unknown Exits Taken 3 | 1 1 1 . . . . . . . . . . . . . . . . . . . . . Scrap Searched 13 | . . 2 5 . . . . . . . . . 2 2 . 2 . . . . . . . Spaces Dug 48 | . . . . . . 2 . . . . 2 7 . 6 3 11 6 2 1 . . 3 5 Terrain Destroyed 480 | . . . . . . 9 . 1 1 . 52 12 . 84 19 27 8 188 8 3 5 15 48 Melee . | . . . . . . . . . . . . . . . . . . . . . . . . Projectile 174 | . . . . . . 9 . 1 1 . 2 12 . 6 4 27 8 26 8 3 5 14 48 AOE 305 | . . . . . . . . . . . 50 . . 78 15 . . 162 . . . . . Terrain Rammed . | . . . . . . . . . . . . . . . . . . . . . . . . Walls Destroyed . | . . . . . . . . . . . . . . . . . . . . . . . . Machines Disabled . | . . . . . . . . . . . . . . . . . . . . . . . . Actions | -11 -10 -10 -9 -6 -6 -6 -6 -6 -6 -6 -6 -5 -5 -5 -5 -4 -4 -4 -3 -3 -2 -1 -1 --------- Run | Yrd Mat Sub Scr Fac Was Fac Gar Ext Cet Arc Hub Fac Upp Upp War Pro Fac Gar Res Qua Res Acc Com Total 19672 | 28 789 143 1921 922 136 813 1823 898 513 217 437 459 1761 554 1163 994 726 1350 1769 788 311 456 701 Wait 4061 | . 180 13 57 282 . 251 36 157 7 10 156 81 939 122 704 273 558 34 72 78 3 40 8 Move 13746 | 20 502 105 1817 563 114 474 1605 568 448 158 246 349 777 421 438 668 155 1079 1500 612 233 365 529 Hop . | . . . . . . . . . . . . . . . . . . . . . . . . Pick Up 40 | . 5 6 3 2 . 2 2 1 . . 5 1 1 1 2 . 1 5 . 3 . . . Fast Attach 90 | 5 11 . 14 3 1 10 4 9 1 1 1 3 2 . . 1 . 1 4 2 3 . 14 Attach 23 | . . . 1 . 2 2 1 . . . 1 . . 2 1 . . . 4 3 1 1 4 Detach 28 | . . . 3 . 4 2 1 1 . . 2 . 1 . 1 . . . 4 2 1 2 4 Swap 114 | . 3 3 7 7 1 10 7 2 4 . 5 2 1 . 4 . 2 17 19 8 2 2 8 Drop 85 | . . 4 10 7 3 5 5 1 3 . 6 4 2 1 2 1 1 12 8 3 1 . 6 Fire 918 | 3 53 9 . 34 11 31 93 73 35 19 15 15 35 6 10 43 8 118 86 62 49 31 79 Melee . | . . . . . . . . . . . . . . . . . . . . . . . . Ram . | . . . . . . . . . . . . . . . . . . . . . . . . Kick 35 | . 12 . . 1 . 2 . 3 . . . 4 . . . 7 1 . 1 . 1 . 3 Crush . | . . . . . . . . . . . . . . . . . . . . . . . . Escape Stasis 77 | . . . . . . . 19 5 . . . . 1 . 1 1 . 35 . . . . 15 Rewire 34 | . . . . . . . . 30 . . . . . . . . . 4 . . . . . Trap . | . . . . . . . . . . . . . . . . . . . . . . . . Miscellaneous 421 | . 23 3 9 23 . 24 50 48 15 29 . . 2 1 . . . 45 71 15 17 15 31 Route ------- -11/Scrapyard -10/Materials (discovered 4 exits: [*Mat x2] / [*Min] / [*Sub]) -10/Subcaves (discovered 2 exits: [Rec] / *Scr) -9/Scraptown (discovered 2 exits: *Fac x2) -6/Factory (discovered 2 exits: *Low x2) -6/Waste -6/Factory (discovered 5 exits: *Low x2 / Ext x2 / Gar) -6/Garrison (discovered 3 exits: *Ext x3) -6/Extension (discovered 2 exits: *Fac / *Cet) -6/Cetus (discovered 3 exits: *Fac x2 / *Arc) -6/Archives (discovered 3 exits: *Fac / *Hub x2) -6/Hub_04(d) (discovered 4 exits: *Fac x4) -5/Factory (discovered 2 exits: *Fac / *Upp) -5/Upper Caves -5/Upper Caves (discovered 2 exits: *Fac / *War) -5/Warlord -4/Proximity Caves -4/Factory (discovered 2 exits: Res / Gar) -4/Garrison (discovered 3 exits: *Res x3) -3/Research (discovered 4 exits: *Res x2 / *Qua x2) -3/Quarantine -2/Research (discovered 3 exits: *Acc x3) -1/Access (discovered 2 exits: Sur / *Com) -1/Command (discovered 2 exits: *Sur x2) Tau Ceti IV Orbit History --------- Turn | Location | Event 1 | -11/Scrapyard | Upgraded with Propulsion slot (x1) 1 | -11/Scrapyard | Upgraded with Utility slot (x19) 1 | -11/Scrapyard | Upgraded with Weapon slot (x2) 9 | -11/Scrapyard | Discovered new exit (range 16) 36 | -11/Scrapyard | Entered Materials 326 | -10/Materials | Build established: Mutant 371 | -10/Materials | Discovered new exit (range 16) 636 | -10/Materials | Derelicts attacked the area 677 | -10/Materials | Discovered new exit (range 10) 754 | -10/Materials | Build established: Scavenger-Gunner 797 | -10/Materials | Reached level 2 803 | -10/Materials | Discovered new exit (range 18) 1024 | -10/Materials | Discovered new exit (range 11) 1038 | -10/Materials | Entered Subcaves 1039 | -10/Subcaves | Approached by a straggling Scientist 1056 | -10/Subcaves | Discovered new exit (range 13) 1269 | -10/Subcaves | Build established: Scavenger-Skirmisher 1270 | -10/Subcaves | Entered Scraptown 1272 | -9/Scraptown | Reached level 3 1567 | -9/Scraptown | Visited Cyclists 1644 | -9/Scraptown | Visited Shadow of the Wyrm 1669 | -9/Scraptown | Visited CPS Storage 1704 | -9/Scraptown | Scanned Subdweller tech in exchange for log data 1707 | -9/Scraptown | Learned Factory garrison access intel 1708 | -9/Scraptown | Learned Research garrison access intel 1709 | -9/Scraptown | Learned Research security intel 1710 | -9/Scraptown | Learned Factory emergency access door positions 1725 | -9/Scraptown | Discovered new exit (range 11) 1744 | -9/Scraptown | Identified exit to Factory 1878 | -9/Scraptown | Heard Great Nut preacher, LISTEN AND RECITE! 1888 | -9/Scraptown | Visited TADAMA 1906 | -9/Scraptown | Visited Red Mages 2093 | -9/Scraptown | Visited UFD Registry 2093 | -9/Scraptown | Registered with UFD as "Cryomech" 2187 | -9/Scraptown | Guru changed UFD alias to "Scrapdome" 2293 | -9/Scraptown | Visited Botcube Research 2310 | -9/Scraptown | Visited Research Penetration Think Tank 2337 | -9/Scraptown | Visited Curators Association 2406 | -9/Scraptown | Visited LU-1G1's Boring Crew 2459 | -9/Scraptown | Visited DA-N13 Charitable Foundation 2464 | -9/Scraptown | Found DCF Scrap (31 items) 2522 | -9/Scraptown | Visited Abandonware Association 2546 | -9/Scraptown | Learned abandonware demo "POISON.EXE" 2546 | -9/Scraptown | Learned abandonware demo "REBOOT5.EXE" 2582 | -9/Scraptown | Visited Analyses Database 2608 | -9/Scraptown | Visited Modified Component R&D 2615 | -9/Scraptown | Discovered exit to Factory (range 14) 2777 | -9/Scraptown | Found Scrap Suit 3358 | -9/Scraptown | Visited Cartography Club 3456 | -9/Scraptown | Found Surveybot 17 Chip 3998 | -9/Scraptown | Met Optimus 3998 | -9/Scraptown | Accepted into 0bPrime 4123 | -9/Scraptown | Entered Factory 4125 | -6/Factory | Loaded intel: 4 garrison access locations 4125 | -6/Factory | Reached level 4 4194 | -6/Factory | Discovered new exit (range 16) 4284 | -6/Factory | Identified exit to Lower Caves 4659 | -6/Factory | Garrison activated, responded to threat 4684 | -6/Factory | Core integrity fell below 50% 4725 | -6/Factory | Destroyed 7 combat bots 4832 | -6/Factory | Reached level 5 5072 | -6/Factory | Repaired Imp. Sensor Array 5297 | -6/Factory | Discovered exit to Lower Caves (range 15) 5389 | -6/Factory | Sucked down chute 5389 | -6/Factory | Entered Waste 5399 | -6/Waste | Spotted C-40 Crusher 5404 | -6/Waste | EMP discharged 5419 | -6/Waste | Destroyed C-40 Crusher 5425 | -6/Waste | Found Damper Plating 5457 | -6/Waste | Spotted C-40 Crusher 5504 | -6/Waste | EMP discharged 5505 | -6/Waste | Spotted C-40 Crusher 5507 | -6/Waste | Spotted C-40 Crusher 5526 | -6/Waste | Crushed by Compactor (1 part destroyed) 5529 | -6/Waste | Crushed by Compactor (0 parts destroyed, 2 dropped) 5533 | -6/Waste | Crushed by Compactor (1 part destroyed, 1 dropped) 5543 | -6/Waste | Crushed by Compactor (1 part destroyed, 1 dropped) 5574 | -6/Waste | Lost 3 parts (2u1w) 5604 | -6/Waste | EMP discharged 5637 | -6/Waste | Discovered new exit (range 12) 5652 | -6/Waste | Identified exit to Factory 5654 | -6/Waste | Entered Factory 5832 | -6/Factory | Identified exit to Extension 6298 | -6/Factory | Build established: Hacker-Gunner 6347 | -6/Factory | Reached level 6 7160 | -6/Factory | Identified exit to Garrison 7163 | -6/Factory | Entered Garrison 7257 | -6/Garrison | Triggered checkpoint 7400 | -6/Garrison | Spotted B-75 Beast 7401 | -6/Garrison | Triggered checkpoint 7442 | -6/Garrison | Destroyed B-75 Beast 7554 | -6/Garrison | Reached level 7 7720 | -6/Garrison | Reached level 8 7789 | -6/Garrison | Triggered checkpoint 7833 | -6/Garrison | Discovered exit to Extension (range 17) 7929 | -6/Garrison | Triggered checkpoint 8047 | -6/Garrison | Discovered exit to Extension (range 14) 8123 | -6/Garrison | Triggered checkpoint 8223 | -6/Garrison | Discovered exit to Extension (range 16) 8345 | -6/Garrison | Found embedded Infiltrators 8347 | -6/Garrison | Triggered checkpoint 8361 | -6/Garrison | Reached level 9 8569 | -6/Garrison | Spotted B-75 Beast 8574 | -6/Garrison | Destroyed B-75 Beast 8693 | -6/Garrison | Triggered checkpoint 9009 | -6/Garrison | Installed Relay Interface Framework 9410 | -6/Garrison | Found Unknown Hackware 9410 | -6/Garrison | Identified Relay Coupler [Proto] 9461 | -6/Garrison | Entered Extension 9461 | -6/Extension | Accompanied by 2 allies 9463 | -6/Extension | Reached level 10 9616 | -6/Extension | Identified exit to Cetus 9845 | -6/Extension | Reached level 11 9895 | -6/Extension | Lost 3 allies 9896 | -6/Extension | Spotted B-75 Beast 9901 | -6/Extension | Rescued a captive Derelict 9901 | -6/Extension | Rescued a captive Derelict 9942 | -6/Extension | Destroyed B-75 Beast 9956 | -6/Extension | Lost 6 allies 9966 | -6/Extension | Spotted B-75 Beast 9993 | -6/Extension | Found Powered Armor 10066 | -6/Extension | Destroyed B-75 Beast 10147 | -6/Extension | Build established: Wizard-Gunner 10161 | -6/Extension | First assault squad dispatched 10267 | -6/Extension | Reached level 12 10297 | -6/Extension | Lost 3 allies 10329 | -6/Extension | Destroyed 8 combat bots 10354 | -6/Extension | Rescued a captive Derelict 10355 | -6/Extension | Rescued a captive Derelict 10403 | -6/Extension | Rescued A7 10420 | -6/Extension | Rescued a captive Derelict 10432 | -6/Extension | Rescued a captive Derelict 10475 | -6/Extension | Discovered new exit (range 10) 10500 | -6/Extension | Entered Cetus 10500 | -6/Cetus | Accompanied by 1 ally (A7) 10502 | -6/Cetus | Reached level 13 10505 | -6/Cetus | Acquired a Cetus Manufacturing Module code from A7 10515 | -6/Cetus | Spotted Cetus Guard 10516 | -6/Cetus | Spotted Cetus Guard 10518 | -6/Cetus | Spotted Cetus Guard 10518 | -6/Cetus | Spotted Cetus Guard 10523 | -6/Cetus | Allies destroyed Cetus Guard 10528 | -6/Cetus | Destroyed Cetus Guard 10538 | -6/Cetus | Destroyed Cetus Guard 10542 | -6/Cetus | Allies destroyed Cetus Guard 10605 | -6/Cetus | Escorted A7 to Cetus Mainframe 10704 | -6/Cetus | Found a strange terminal 10726 | -6/Cetus | Discovered new exit (range 18) 10795 | -6/Cetus | Discovered new exit (range 18) 10813 | -6/Cetus | Identified exit to Factory 10914 | -6/Cetus | Identified exit to Archives 10937 | -6/Cetus | Spotted Cetus Guard 10937 | -6/Cetus | Spotted Cetus Guard 10940 | -6/Cetus | Spotted Cetus Guard 10940 | -6/Cetus | Spotted Cetus Guard 10949 | -6/Cetus | Destroyed Cetus Guard 10961 | -6/Cetus | Destroyed Cetus Guard 10965 | -6/Cetus | Allies destroyed Cetus Guard 10970 | -6/Cetus | Destroyed Cetus Guard 10974 | -6/Cetus | Discovered exit to Factory (range 18) 10983 | -6/Cetus | Reached level 14 10983 | -6/Cetus | Met Revision 17 11084 | -6/Cetus | Entered Archives 11084 | -6/Archives | Accompanied by 1 ally (A7) 11095 | -6/Archives | Received a hacking code to weaken MAIN.C 11125 | -6/Archives | Discovered exit to Factory (range 20) 11184 | -6/Archives | Discovered new exit (range 20) 11190 | -6/Archives | Discovered new exit (range 18) 11230 | -6/Archives | Unable to access archive contents 11241 | -6/Archives | Unable to access archive contents 11252 | -6/Archives | Unable to access archive contents 11263 | -6/Archives | Unable to access archive contents 11311 | -6/Archives | Identified exit to Hub_04(d) 11332 | -6/Archives | Entered Hub_04(d) 11334 | -6/Hub_04(d) | Reached level 15 11354 | -6/Hub_04(d) | Discovered exit to Factory (range 13) 11709 | -6/Hub_04(d) | Discovered exit to Factory (range 20) 11804 | -6/Hub_04(d) | Entered Factory 11806 | -5/Factory | Reached level 16 11907 | -5/Factory | Discovered new exit (range 17) 11956 | -5/Factory | Reached level 17 12004 | -5/Factory | Identified exit to Factory 12098 | -5/Factory | Discovered new exit (range 13) 12119 | -5/Factory | Identified exit to Upper Caves 12329 | -5/Factory | Entered Upper Caves 12370 | -5/Upper Caves | Encountered a Warlord checkpoint 12409 | -5/Upper Caves | Learned location of 1 exit from Factory 12592 | -5/Upper Caves | Acquired the password to a Derelict Tinkerer's latest research 12604 | -5/Upper Caves | Found Prototype Special Weapon 12604 | -5/Upper Caves | Identified Molecular Deconstructor 13139 | -5/Upper Caves | Crushed by falling debris 13443 | -5/Upper Caves | Build established: Hacker-Gunner 13994 | -5/Upper Caves | Attracted the attention of an 0b10 checkpoint 14043 | -5/Upper Caves | Identified exit to Upper Caves 14208 | -5/Upper Caves | Caught by Unaware searching for contraband prototypes 14308 | -5/Upper Caves | Entered another Upper Caves area 14308 | -5/Upper Caves | Discovered exit to Factory (range 4) 14310 | -5/Upper Caves | Reached level 18 14734 | -5/Upper Caves | Spotted B-75 Beast 14960 | -5/Upper Caves | Learned Factory emergency access door positions 15096 | -5/Upper Caves | Discovered new exit (range 14) 15172 | -5/Upper Caves | Identified exit to Warlord 15174 | -5/Upper Caves | Entered Warlord 15256 | -5/Warlord | System corruption cleaned by Quarantine Array 15260 | -5/Warlord | RIF detected upon attempting to enter Warlord's base 15260 | -5/Warlord | Attacked by Warlord forces 15383 | -5/Warlord | Discovered new exit (range 19) 15402 | -5/Warlord | Identified exit to Proximity Caves 15417 | -5/Warlord | Reached level 19 15417 | -5/Warlord | Warlord's base attacked by MAIN.C 15767 | -5/Warlord | Warlord forces counterattacked 16092 | -5/Warlord | Warlord base infiltrated, sounded retreat 16206 | -5/Warlord | Found Prototype Energy Cannon 16206 | -5/Warlord | Identified Vortex Cannon 16215 | -5/Warlord | Found Prototype Energy Cannon 16215 | -5/Warlord | Identified Vortex Driver 16221 | -5/Warlord | Found Vortex Driver 16565 | -5/Warlord | Entered Proximity Caves 16604 | -4/Proximity Caves | Reached level 20 16913 | -4/Proximity Caves | Build established: Wizard-Gunner 17642 | -4/Proximity Caves | Learned Research terminal intel 17898 | -4/Proximity Caves | Crushed by falling debris 17899 | -4/Proximity Caves | Core integrity fell below 50% 17949 | -4/Proximity Caves | Discovered exit to Factory (range 15) 18117 | -4/Proximity Caves | Entered Factory 18118 | -4/Factory | Identified exit to Research 18118 | -4/Factory | Core integrity fell below 50% 18119 | -4/Factory | Reached level 21 18954 | -4/Factory | Reached level 22 18970 | -4/Factory | Identified exit to Garrison 18972 | -4/Factory | Entered Garrison 18998 | -4/Garrison | Triggered checkpoint 19252 | -4/Garrison | Spotted B-86 Titan 19258 | -4/Garrison | Destroyed B-86 Titan 19270 | -4/Garrison | Triggered checkpoint 19270 | -4/Garrison | Triggered checkpoint 19272 | -4/Garrison | Triggered checkpoint 19274 | -4/Garrison | Triggered checkpoint 19277 | -4/Garrison | Reached level 23 19334 | -4/Garrison | Destroyed 9 combat bots 19385 | -4/Garrison | Triggered checkpoint 19394 | -4/Garrison | Crushed by falling debris 19585 | -4/Garrison | Rescued a captive Derelict 19593 | -4/Garrison | Rescued a captive Derelict 19649 | -4/Garrison | Discovered exit to Research (range 9) 19668 | -4/Garrison | Expanded RIF knowledge: Program Shield 19798 | -4/Garrison | Triggered checkpoint 19804 | -4/Garrison | Reached level 24 19912 | -4/Garrison | Discovered exit to Research (range 9) 20100 | -4/Garrison | Garrison Relay disabled 20102 | -4/Garrison | Triggered checkpoint 20133 | -4/Garrison | Garrison Relay disabled 20280 | -4/Garrison | Discovered exit to Research (range 10) 20451 | -4/Garrison | Spotted Striker 20453 | -4/Garrison | Spotted Striker 20463 | -4/Garrison | Rewired Executioner 20481 | -4/Garrison | Destroyed Striker 20491 | -4/Garrison | Destroyed Striker 20712 | -4/Garrison | Garrison Relay disabled 20778 | -4/Garrison | Phase Generator disabled 20917 | -4/Garrison | Spotted B-86 Titan 20946 | -4/Garrison | Entered Research 20946 | -3/Research | Accompanied by 1 ally 20948 | -3/Research | Loaded intel: 22 terminal locations 20948 | -3/Research | Reached level 25 20948 | -3/Research | Reached level 26 20949 | -3/Research | Loaded intel: 4 garrison access locations 21140 | -3/Research | Watched by a mysterious "MATRIX" hacker. 21146 | -3/Research | Revision forces began assault on 0b10 21206 | -3/Research | Met up with Revision 17++ 21292 | -3/Research | Discovered new exit (range 16) 21365 | -3/Research | System corruption reached 10% 21645 | -3/Research | Discovered new exit (range 15) 21646 | -3/Research | Research terminal network offline 21829 | -3/Research | Identified exit to Quarantine 22003 | -3/Research | Spotted B-86 Titan 22088 | -3/Research | Lost 3 allies 22199 | -3/Research | Discovered exit to Quarantine (range 16) 22218 | -3/Research | Reached level 27 22538 | -3/Research | Spotted Striker 22539 | -3/Research | Destroyed Striker 22542 | -3/Research | Discovered new exit (range 19) 22543 | -3/Research | Spotted Striker 22544 | -3/Research | Destroyed Striker 22579 | -3/Research | Spotted Striker 22585 | -3/Research | Destroyed Striker 22613 | -3/Research | Spotted Executioner 22613 | -3/Research | Spotted Striker 22624 | -3/Research | Destroyed Executioner 22630 | -3/Research | Destroyed Striker 22634 | -3/Research | Spotted Striker 22636 | -3/Research | Spotted Executioner 22646 | -3/Research | Destroyed Executioner 22674 | -3/Research | Lost 4 allies 22765 | -3/Research | Spotted Striker 22777 | -3/Research | Destroyed Striker 22795 | -3/Research | Spotted Striker 22802 | -3/Research | Destroyed Striker 22860 | -3/Research | Identified exit to Research 22889 | -3/Research | Reached level 28 22943 | -3/Research | Spotted Striker 22946 | -3/Research | Spotted Striker 22947 | -3/Research | Spotted Executioner 22959 | -3/Research | Destroyed Executioner 22963 | -3/Research | Destroyed Striker 23111 | -3/Research | Entered Quarantine 23187 | -3/Quarantine | Spotted Alpha 7 23224 | -3/Quarantine | Found Alien Artifact 23224 | -3/Quarantine | Identified Terrabomb 23224 | -3/Quarantine | Used Terrabomb 23500 | -3/Quarantine | Discovered exit to Research (range 18) 23690 | -3/Quarantine | Destroyed 8 combat bots 23746 | -3/Quarantine | Found Alien Artifact 23793 | -3/Quarantine | Found Alien Artifact 23793 | -3/Quarantine | Identified Core Reset Matrix 23793 | -3/Quarantine | Identified Transdimensional Reconstructor 23793 | -3/Quarantine | Reached level 29 23793 | -3/Quarantine | Used Core Reset Matrix 23797 | -3/Quarantine | Detected hypermatrix surge 23797 | -3/Quarantine | Sensed 12 artifacts in vicinity 23862 | -3/Quarantine | Met incapacitated Sigix Warrior 23862 | -3/Quarantine | Lockdown squad dispatched 23899 | -3/Quarantine | Acquired the access code to the Sigix quarantine chamber 23902 | -3/Quarantine | Unlocked Sigix quarantine chamber 23907 | -3/Quarantine | Found Sigix Containment Pod 23931 | -3/Quarantine | Spotted Lightning 23931 | -3/Quarantine | Spotted Lightning 23931 | -3/Quarantine | Spotted Lightning 23940 | -3/Quarantine | Destroyed Lightning 23940 | -3/Quarantine | Destroyed Lightning 23949 | -3/Quarantine | Destroyed Lightning 24067 | -3/Quarantine | Discovered exit to Research (range 17) 24082 | -3/Quarantine | Entered Research 24084 | -2/Research | Reached level 30 24174 | -2/Research | Warped through subspace 24237 | -2/Research | Identified exit to Access 24314 | -2/Research | Reached level 31 24462 | -2/Research | Entered Access 24464 | -1/Access | Reached level 32 24578 | -1/Access | Identified exit to Command 24753 | -1/Access | Discovered new exit (range 19) 24820 | -1/Access | Reached level 33 24962 | -1/Access | First assault squad dispatched 24971 | -1/Access | Entered Command 24973 | -1/Command | Reached level 34 25340 | -1/Command | Identified exit to Surface 25471 | -1/Command | First assault squad dispatched 25799 | -1/Command | Spotted Striker 25802 | -1/Command | Destroyed Striker 25817 | -1/Command | Reached level 35 25843 | -1/Command | Spotted Alpha 7 25843 | -1/Command | Spotted Alpha 7 25843 | -1/Command | Spotted Striker 25843 | -1/Command | Spotted Executioner 25843 | -1/Command | Spotted Executioner 25843 | -1/Command | Spotted Executioner 25843 | -1/Command | Spotted Executioner 25844 | -1/Command | Spotted B-99 Colossus 25860 | -1/Command | Destroyed Striker 25863 | -1/Command | Destroyed Executioner 25877 | -1/Command | Destroyed Executioner 25884 | -1/Command | Destroyed Alpha 7 25886 | -1/Command | Destroyed Executioner 25891 | -1/Command | Destroyed Executioner 25904 | -1/Command | Destroyed Alpha 7 25925 | -1/Command | Destroyed 7 combat bots 25927 | -1/Command | Destroyed B-99 Colossus 25954 | -1/Command | Spotted B-99 Colossus 25964 | -1/Command | Destroyed B-99 Colossus 25996 | *** | Destroyed 0b10! Last Messages --------------- 25976_ Destroyed Unknown Hover Unit. 25976_ P-80 Master suffers critical hit (Blast). 25976_ Destroyed Unknown Hover Unit. 25976_ P-80 Master knocked back. 25976_ P-80 Master destroyed. 25977_ Acquired 24 matter. 25979_ Triggered Stasis Trap. 25979_ A bubble of rippling energy engulfs the area. 25979_ Field strength at 85. 25980_ Field strength at 70. 25981_ Field strength at 55. 25982_ Field strength at 40. 25983_ Field strength at 25. 25984_ Field strength at 10. 25985_ Stasis field depleted. 25985_ R-10 Processor collects Unknown Wheel. 25987_ The Access Shell folds into the floor. 25990_ R-10 Processor collects Adv. Heat Sink. [Achievement: Just Browsing] [Achievement: Leg Day] Map ----- +----------------------------------------------------+ | ##?????????### "" # ###+### ###"### | | # ???????? ?# """" # "" !! | | # ?????? ?# """" + " =!= ===%= | | # ?????? ??# "" # %!* =![[![ | | ? ???? ? # ! # ####### !!=%###+### | | ? ???? ? # #######?????##!%!%## # | | ?? """ ? # #????????????#[%=### # | | ?? T""" ? ?# #????????????# =#?# # | | ?? """" ??####"########????????????# =#?# # | | ??? """ ??????# #???????????????????" %#?# # | | ??? ???????# #??????????????????#" % #?# # | | ???? ????????# #??????????????????#" #?# # | | ???? ?????????# ########???????????# % ?#* # | | #???#/#????????##! #???????????# ?###### | | ####[#?########""########???????????+ ?????? | | **!###"##""#"#"########???????????# ?????? | | %%!![=%** ! * + ???????" ????? | | % ]!%"=""""###""########???????????### ????? | | ![! " ###?####?#######????????????# ????? | | %""%% " ###??????###;##;;######???????# ???? | | ""%!*"##???????##%%% #???????? ???? | | Y===!"##########;% % #???????? ??? | | "" %%;;## # # # ; % ^ #???????? ??? | | " %;; ^ ^ #????????##### ???? | | ; ^^% ^ #?????????????????? | | % /%^^%^ ^ ^ "@ #?????????????????? | | %/ ^^^^ ^ "" ^ #?????????????????? | | ## % / ^^^^^ #?????????????????? | | ?## "#"## ^ ^%^ #?????????????????? | | ??# "# ###; # # # ; #?????????????????? | | ??# ####?#########; #?????????????????? | | ??# ?????????????## #?????????????????? | | ??# ??????????????##############?????????????????? | | ??# ?????????????????????????????????????????????? | | ??# ?????????????????????????????????????????????? | | ??# ?????????????????????????????????????????????? | | ??# ????????????????????????????????????????????? | | ?? ?????????????????????????????????????????????? | | ?? ????????????????????????????????????????????# | | ????????????????????????????????????????????????# | | ????????????????????????????????????????????????# | | ??????????????????????????????????????????????? " | | ????????????????????????????????????????????????# | | ?????????????????????????????????????????????????? | | ?????????????????????????????????????????????????? | | ?????????????????????????????????????????????????? | | ?????????????????????????????????????????????????? | | ?????????????????????????????????????????????????? | | ?????????????????????????????????????????????????? | | ?????????????????????????????????????????????????? | +----------------------------------------------------+ Best States ------------- Heat Dissipation 110 Energy Generation 105 Energy Capacity 580 Matter Stores 550 Matter Capacity 550 Sight Range 23 Robot Scan Range 48 Terrain Scan Range 24 Terrain Scan Density 1485 ECM Strength 2 Additional Mass Support 6 Armor Coverage 1825 Resistance: KI 20 Resistance: TH 15 Resistance: EX 20 Resistance: EM 90 Weapon Cycling 30 Phase Shifting 10 Evasion (%) 73 Targeting Accuracy 17 Target Analysis 8 Core Analysis 9 Recoil Reduction 6 Kinecelleration 40 Salvage Targeting 1 Offensive Hacking 57 Defensive Hacking 20 Relay Coupler Types 1 Relay Coupler Value 48 Item Schematics ----------------- None Robot Schematics ------------------ None Fabricated ------------ Nothing Repaired ---------- Imp. Sensor Array | 63% | -6/Factory Studied --------- Hyp. Mass Driver | -3/Quarantine | Hacked Centrium Leg | -3/Quarantine | Hacked Adv. Remote Datajack | -3/Quarantine | Hacked Alien Tech Used ----------------- Terrabomb Core Reset Matrix Transdimensional Reconstructor Achievements -------------- Analysis Probe Construction Begets Destruction Deadly Precision Deconstruction Ew, Corruption Explorer Giant Slayer Gun Specialist I Laugh At Your Crits Insider Info Join The Dark Side Just Browsing Leg Day Longdome?! Main Advantage Maybe Next Time I'll Detach My Launcher Prison Break Revising The Future Revolutionary Research This Is My Hole You Will Be Upgraded Challenges ------------ None RPGLIKE | -11 -10 -10 -9 -6 -6 -6 -6 -6 -6 -6 -6 -5 -5 -5 -5 -4 -4 -4 -3 -3 -2 -1 -1 --------- Run | Yrd Mat Sub Scr Fac Was Fac Gar Ext Cet Arc Hub Fac Upp Upp War Pro Fac Gar Res Qua Res Acc Com Levels Raised 34 | . 1 . 1 2 . 1 3 3 2 . 1 2 . 1 1 1 2 2 4 1 2 2 2 XP Earned 54975 | 3000 1500 1000 900 3100 200 1100 5082 5016 1838 900 1460 2125 1150 950 750 2700 1750 4172 5006 2146 2401 3187 3542 XP Spent 158265 | 107400 1480 . 1510 2895 . 1500 4585 4500 1440 . 3080 2925 . 1405 1530 1650 1325 3125 6725 . 3570 4500 3120 Upgrades 175 | 49 17 . 11 10 . 2 17 8 6 . 6 7 . 2 3 6 3 4 6 . 7 3 8 Propulsion Slot 1 | 1 . . . . . . . . . . . . . . . . . . . . . . . Utility Slot 19 | 19 . . . . . . . . . . . . . . . . . . . . . . . Weapon Slot 2 | 2 . . . . . . . . . . . . . . . . . . . . . . . Core Integrity 41 | . 8 . . 2 . . 9 . 6 . 3 . . 1 . . . . . . 4 . 8 Heat Dissipation 11 | . 5 . 2 . . . 2 . . . . . . . 1 . . . . . 1 . . Energy Generation 16 | 16 . . . . . . . . . . . . . . . . . . . . . . . Energy Storage 4 | . . . . . . . . . . . . . . . . . 2 2 . . . . . Matter Storage 5 | . . . . . . . . . . . . . . . . 4 . . 1 . . . . Mass Support 5 | . . . . . . . 3 . . . . . . . . . . 1 1 . . . . Inventory Capacity 8 | 8 . . . . . . . . . . . . . . . . . . . . . . . Sight Range 4 | . . . 2 . . . . . . . 1 . . . . . . . . . 1 . . Sensor Range 16 | . . . 4 6 . . . 1 . . 1 3 . . . . . . 1 . . . . Terrain Scan Density 4 | . 1 . 1 . . . 2 . . . . . . . . . . . . . . . . Ranged Accuracy 13 | 1 . . . . . 1 1 2 . . . . . . . . 1 1 2 . 1 3 . Hack Attack % 8 | 2 . . . 2 . 1 . 1 . . 1 . . . . . . . 1 . . . . Hack Defense % 2 | . . . . . . . . . . . . . . . . 2 . . . . . . . KI Resistance % 4 | . 1 . . . . . . 2 . . . . . . 1 . . . . . . . . TH Resistance % 3 | . 1 . . . . . . 1 . . . . . . 1 . . . . . . . . EX Resistance % 4 | . . . 2 . . . . 1 . . . 1 . . . . . . . . . . . KI Damage % 4 | . . . . . . . . . . . . 3 . 1 . . . . . . . . . TH Damage % 1 | . 1 . . . . . . . . . . . . . . . . . . . . . . Protomatter Created 4381 | . 287 . . 307 85 188 517 500 176 212 35 . 11 10 . 6 58 494 520 196 312 122 345 Integrity Restored 9229 | . 462 54 192 510 . 564 1099 1101 345 612 . . 12 15 . . . 990 1602 300 382 333 656 Core 7976 | . 372 21 148 510 . 564 948 1101 345 178 . . 12 15 . . . 990 1355 297 382 333 405 Parts 1253 | . 90 33 44 . . . 151 . . 434 . . . . . . . . 247 3 . . 251 Protomatter Decayed 6249 | . 43 . . 96 85 . 93 294 114 . . . 75 19 1633 . . 142 3497 2 109 . 47 Game ------ Seed AmyLove Manual? 1 Play Time 05:30:28 Cumulative 31.3 hours Start 2026.03.20 @ 10:43:36 End 2026.03.20 @ 17:19:29 Sessions 1 Manual Loads 0 Difficulty Rogue Special Mode Winter2019/RPGLIKE Game No. 18 Rogue 15 Adventurer 0 Explorer 3 Win Type 3 Total 3 Types 1/0/0/2/0/0/0/0/0/0 Lore% 17 Gallery% 25 Achievement% 30 Wizard Run 0 Options --------- Layout 0 ASCII 0 Keyboard 1 Movement Numpad Keybinds 0 Fullscreen 1 Font 20/Smallcaps Map View 66x50 Zoom Use 0% Tactical HUD 1 Map Filters NONE Filters NONE Steam 1 RUN: 49395c01-7e58-44a7-86b4-2b83a682817d